fUSD/lending_fUSD_20240501
["ID","MTS","AMOUNT","RATE_DAILY","PERIOD"]
[325155412,1714542652379,-500.0,0.00011506,2]
[325155413,1714542652389,-716.58,0.00011506,2]
[325155414,1714542652398,-500.0,0.00011506,2]
[325155415,1714542652407,-500.0,0.00011506,2]
[325155416,1714542652417,-500.0,0.00011506,2]
[325155417,1714542652426,-500.0,0.00011506,2]
[325155418,1714542652436,-500.0,0.00011506,2]
[325155419,1714542652446,-500.0,0.00011506,2]
[325155420,1714542652456,-500.0,0.00011506,2]
[325155421,1714542652466,-500.0,0.00011506,2]
[325155422,1714542652475,-500.0,0.00011506,2]
[325155423,1714542652485,-500.0,0.00011506,2]
[325155424,1714542652494,-195.97056843,0.00011506,2]
[325155425,1714542652504,-500.0,0.00011506,2]
[325155426,1714542652513,-281.8766011,0.00011506,2]
[325155427,1714542652522,-500.0,0.00011506,2]
[325155428,1714542652532,-500.0,0.00011506,2]
[325155429,1714542652541,-500.0,0.00011506,2]
[325155430,1714542652550,-500.0,0.00011506,2]
[325155431,1714542652560,-500.0,0.00011506,2]
[325155432,1714542652569,-500.0,0.00011506,2]
[325155433,1714542652578,-165.0570022,0.00011506,2]
[325155434,1714542652588,-500.0,0.00011506,2]
[325155435,1714542652597,-500.0,0.00011506,2]
[325155436,1714542652606,-500.0,0.00011506,2]
[325155437,1714542652616,-500.0,0.00011506,2]
[325155438,1714542652625,-500.0,0.00011506,2]
[325155439,1714542652635,-500.0,0.00011506,2]
[325155440,1714542652644,-500.0,0.00011506,2]
[325155441,1714542652654,-500.0,0.00011506,2]
[325155442,1714542652664,-500.0,0.00011506,2]
[325155443,1714542652674,-526.14657687,0.00011506,2]
[325155444,1714542652685,-500.0,0.00011506,2]
[325155445,1714542652695,-500.0,0.00011506,2]
[325155446,1714542652704,-500.0,0.00011506,2]
[325155447,1714542652714,-500.0,0.00011506,2]
[325155448,1714542652724,-500.0,0.00011506,2]
[325155449,1714542652733,-500.0,0.00011506,2]
[325155450,1714542652743,-299.86543187,0.00011506,2]
[325155451,1714542652752,-500.0,0.00011506,2]
[325155452,1714542652762,-500.0,0.00011506,2]
[325155453,1714542652772,-500.0,0.00011506,2]
[325155454,1714542652782,-500.0,0.00011506,2]
[325155455,1714542652791,-500.0,0.00011506,2]
[325155456,1714542652801,-704.22,0.00011506,2]
[325155457,1714542652811,-500.0,0.00011506,2]
[325155458,1714542652820,-500.0,0.00011506,2]
[325155459,1714542652830,-500.0,0.00011506,2]
[325155460,1714542652839,-500.0,0.00011506,2]
[325155461,1714542652849,-500.0,0.00011506,2]
[325155462,1714542652859,-500.0,0.00011506,2]
[325155463,1714542652868,-500.0,0.00011506,2]
[325155464,1714542652878,-1776.56,0.00011506,2]
[325155465,1714542652887,-500.0,0.00011506,2]
[325155466,1714542652897,-171.53,0.00011506,2]
[325155467,1714542652906,-500.0,0.00011506,2]
[325155468,1714542652916,-500.0,0.00011506,2]
[325155469,1714542652926,-500.0,0.00011506,2]
[325155470,1714542652937,-500.0,0.00011506,2]
[325155471,1714542652947,-500.0,0.00011506,2]
[325155472,1714542652956,-500.0,0.00011506,2]
[325155473,1714542652966,-500.0,0.00011506,2]
[325155474,1714542652976,-393.51,0.00011506,2]
[325155475,1714542652986,-500.0,0.00011506,2]
[325155476,1714542652995,-686.3,0.00011506,2]
[325155477,1714542653005,-629.96582023,0.00011506,2]
[325155478,1714542653015,-500.0,0.00011506,2]
[325155479,1714542653025,-500.0,0.00011506,2]
[325155480,1714542653035,-500.0,0.00011506,2]
[325155481,1714542653044,-500.0,0.00011506,2]
[325155482,1714542653053,-626.52,0.00011506,2]
[325155483,1714542653063,-500.0,0.00011506,2]
[325155484,1714542653072,-1184.92,0.00011506,2]
[325155485,1714542653082,-500.0,0.00011506,2]
[325155486,1714542653091,-510.07813768,0.00011506,2]
[325155487,1714542653101,-500.0,0.00011506,2]
[325155488,1714542653110,-699.23,0.00011506,2]
[325155489,1714542653120,-500.0,0.00011506,2]
[325155490,1714542653130,-500.0,0.00011506,2]
[325155491,1714542653139,-500.0,0.00011506,2]
[325155492,1714542653148,-500.0,0.00011506,2]
[325155493,1714542653158,-500.0,0.00011506,2]
[325155494,1714542653167,-500.0,0.00011506,2]
[325155495,1714542653179,-7170.82,0.00011506,2]
[325155496,1714542653188,-589.48,0.00011506,2]
[325155497,1714542653198,-500.0,0.00011506,2]
[325155498,1714542653212,-625.52,0.00011506,2]
[325155499,1714542653221,-643.14,0.00011506,2]
[325155500,1714542653231,-809.92,0.00011506,2]
[325155501,1714542653240,-500.0,0.00011506,2]
[325155502,1714542653251,-202.79552472,0.00011506,2]
[325155503,1714542653260,-500.0,0.00011506,2]
[325155504,1714542653269,-500.0,0.00011506,2]
[325155505,1714542653279,-500.0,0.00011506,2]
[325155506,1714542653290,-697.39,0.00011506,2]
[325155507,1714542653299,-1650.0,0.00011506,2]
[325155508,1714542653308,-7789.17,0.00011506,2]
[325155509,1714542653318,-500.0,0.00011506,2]
[325155510,1714542653329,-569.91125697,0.00011506,2]
[325155511,1714542653339,-500.0,0.00011506,2]
[325155512,1714542653349,-500.0,0.00011506,2]
[325155513,1714542653360,-3346.94,0.00011506,2]
[325155514,1714542653371,-314.1682722,0.00011506,2]
[325155515,1714542653383,-500.0,0.00011506,2]
[325155516,1714542653394,-500.0,0.00011506,2]
[325155517,1714542653404,-724.59,0.00011506,2]
[325155518,1714542653414,-585.15,0.00011506,2]
[325155519,1714542653424,-549.53,0.00011506,2]
[325155520,1714542653435,-601.63662637,0.00011506,2]
[325155521,1714542653444,-500.0,0.00011506,2]
[325155522,1714542653453,-500.0,0.00011506,2]
[325155523,1714542653463,-711.11,0.00011506,2]
[325155524,1714542653472,-1021.06,0.00011506,2]
[325155525,1714542653482,-614.40350021,0.00011506,2]
[325155526,1714542653491,-500.0,0.00011506,2]
[325155527,1714542653501,-1018.7,0.00011506,2]
[325155528,1714542653511,-500.0,0.00011506,2]
[325155529,1714542653520,-3038.17,0.00011506,2]
[325155530,1714542653529,-500.0,0.00011506,2]
[325155531,1714542653539,-500.0,0.00011506,2]
[325155532,1714542653548,-500.0,0.00011506,2]
[325155533,1714542653557,-500.0,0.00011506,2]
[325155534,1714542653567,-451.86117777,0.00011506,2]
[325155535,1714542653576,-500.0,0.00011506,2]
[325155536,1714542653586,-591.4,0.00011506,2]
[325155537,1714542653595,-1962.87,0.00011506,2]
[325155538,1714542653605,-530.09683129,0.00011506,2]
[325155539,1714542653615,-500.0,0.00011506,2]
[325155540,1714542653625,-500.0,0.00011506,2]
[325155541,1714542653635,-1298.52,0.00011506,2]
[325155542,1714542653648,-1337.7,0.00011506,2]
[325155543,1714542653657,-500.0,0.00011506,2]
[325155544,1714542653667,-500.0,0.00011506,2]
[325155545,1714542653676,-500.0,0.00011506,2]
[325155546,1714542653687,-500.0,0.00011506,2]
[325155547,1714542653696,-500.0,0.00011506,2]
[325155548,1714542653705,-500.0,0.00011506,2]
[325155549,1714542653715,-500.0,0.00011506,2]
[325155550,1714542653724,-519.03654072,0.00011506,2]
[325155551,1714542653734,-500.0,0.00011506,2]
[325155552,1714542653743,-1264.24,0.00011506,2]
[325155553,1714542653752,-1069.93,0.00011506,2]
[325155554,1714542653762,-500.0,0.00011506,2]
[325155555,1714542653772,-582.27,0.00011506,2]
[325155556,1714542653782,-500.0,0.00011506,2]
[325155557,1714542653791,-500.0,0.00011506,2]
[325155558,1714542653801,-500.0,0.00011506,2]
[325155559,1714542653811,-710.13,0.00011506,2]
[325155560,1714542653820,-500.0,0.00011506,2]
[325155561,1714542653829,-500.0,0.00011506,2]
[325155562,1714542653839,-500.0,0.00011506,2]
[325155563,1714542653849,-500.0,0.00011506,2]
[325155564,1714542653859,-690.32,0.00011506,2]
[325155565,1714542653868,-435.05666893,0.00011506,2]
[325155566,1714542653878,-738.69,0.00011506,2]
[325155567,1714542653888,-500.0,0.00011506,2]
[325155568,1714542653897,-500.0,0.00011506,2]
[325155569,1714542653907,-602.98,0.00011506,2]
[325155570,1714542653916,-500.0,0.00011506,2]
[325155571,1714542653926,-500.0,0.00011506,2]
[325155572,1714542653940,-500.0,0.00011506,2]
[325155573,1714542653949,-500.0,0.00011506,2]
[325155574,1714542653958,-2161.38,0.00011506,2]
[325155575,1714542653967,-966.37,0.00011506,2]
[325155576,1714542653977,-4905.9,0.00011506,2]
[325155577,1714542653986,-500.0,0.00011506,2]
[325155578,1714542653996,-1948.4,0.00011506,2]
[325155579,1714542654005,-759.28,0.00011506,2]
[325155580,1714542654015,-500.0,0.00011506,2]
[325155581,1714542654024,-1275.71,0.00011506,2]
[325155582,1714542654034,-500.0,0.00011506,2]
[325155583,1714542654043,-500.0,0.00011506,2]
[325155584,1714542654052,-758.67,0.00011506,2]
[325155585,1714542654062,-500.0,0.00011506,2]
[325155586,1714542654071,-886.96,0.00011506,2]
[325155587,1714542654081,-500.0,0.00011506,2]
[325155588,1714542654091,-500.0,0.00011506,2]
[325155589,1714542654100,-500.0,0.00011506,2]
[325155590,1714542654110,-2677.35,0.00011506,2]
[325155591,1714542654119,-500.0,0.00011506,2]
[325155592,1714542654129,-500.0,0.00011506,2]
[325155593,1714542654138,-500.0,0.00011506,2]
[325155594,1714542654148,-500.0,0.00011506,2]
[325155595,1714542654157,-1235.88,0.00011506,2]
[325155596,1714542654167,-500.0,0.00011506,2]
[325155597,1714542654177,-866.09,0.00011506,2]
[325155598,1714542654364,-500.0,0.00011506,2]
[325155599,1714542654380,-500.0,0.00011506,2]
[325155600,1714542654389,-1072.35,0.00011506,2]
[325155601,1714542654399,-1288.28,0.00011506,2]
[325155602,1714542654408,-500.0,0.00011506,2]
[325155603,1714542654417,-500.0,0.00011506,2]
[325155604,1714542654427,-500.0,0.00011506,2]
[325155605,1714542654438,-3316.24,0.00011506,2]
[325155606,1714542654447,-1241.61,0.00011506,2]
[325155607,1714542654457,-500.0,0.00011506,2]
[325155608,1714542654467,-500.0,0.00011506,2]
[325155609,1714542654476,-500.0,0.00011506,2]
[325155610,1714542654485,-521.11821583,0.00011506,2]
[325155611,1714542654494,-500.0,0.00011506,2]
[325155612,1714542654503,-500.0,0.00011506,2]
[325155613,1714542654512,-2504.85,0.00011506,2]
[325155614,1714542654521,-500.0,0.00011506,2]
[325155615,1714542654531,-195.05812786,0.00011506,2]
[325155616,1714542654540,-500.0,0.00011506,2]
[325155617,1714542654549,-810.87,0.00011506,2]
[325155618,1714542654558,-528.18087026,0.00011506,2]
[325155619,1714542654567,-500.0,0.00011506,2]
[325155620,1714542654576,-500.0,0.00011506,2]
[325155621,1714542654586,-500.0,0.00011506,2]
[325155622,1714542654595,-507.55,0.00011506,2]
[325155623,1714542654604,-870.27,0.00011506,2]
[325155624,1714542654614,-500.0,0.00011506,2]
[325155625,1714542654623,-500.0,0.00011506,2]
[325155626,1714542654632,-3432.19,0.00011506,2]
[325155627,1714542654641,-1019.03,0.00011506,2]
[325155628,1714542654651,-500.0,0.00011506,2]
[325155629,1714542654660,-935.9,0.00011506,2]
[325155630,1714542654669,-563.78,0.00011506,2]
[325155631,1714542654682,-2956.33,0.00011506,2]
[325155632,1714542654692,-1026.81,0.00011506,2]
[325155633,1714542654701,-3294.14,0.00011506,2]
[325155634,1714542654710,-422.45471424,0.00011506,2]
[325155635,1714542654719,-500.0,0.00011506,2]
[325155636,1714542654728,-500.0,0.00011506,2]
[325155637,1714542654737,-500.0,0.00011506,2]
[325155638,1714542654746,-1610.66,0.00011506,2]
[325155639,1714542654755,-500.0,0.00011506,2]
[325155640,1714542654765,-500.0,0.00011506,2]
[325155641,1714542654774,-1323.01,0.00011506,2]
[325155642,1714542654784,-6150.44,0.00011506,2]
[325155643,1714542654794,-1965.64,0.00011506,2]
[325155644,1714542654803,-500.0,0.00011506,2]
[325155645,1714542654813,-500.0,0.00011506,2]
[325155646,1714542654822,-500.0,0.00011506,2]
[325155647,1714542654832,-638.86200258,0.00011506,2]
[325155648,1714542654842,-500.34,0.00011506,2]
[325155649,1714542654852,-11884.42,0.00011506,2]
[325155650,1714542654862,-500.0,0.00011506,2]
[325155651,1714542654871,-1478.72,0.00011506,2]
[325155652,1714542654880,-1095.18,0.00011506,2]
[325155653,1714542654890,-12067.93,0.00011506,2]
[325155654,1714542654900,-1361.3,0.00011506,2]
[325155655,1714542654911,-533.9602724,0.00011506,2]
[325155656,1714542654920,-500.0,0.00011506,2]
[325155657,1714542654933,-671.59,0.00011506,2]
[325155658,1714542654942,-500.0,0.00011506,2]
[325155659,1714542654951,-803.19,0.00011506,2]
[325155660,1714542654959,-510.64,0.00011506,2]
[325155661,1714542654968,-336.9,0.00011506,2]
[325155662,1714542654978,-568.8127476,0.00011506,2]
[325155663,1714542654987,-1131.44,0.00011506,2]
[325155664,1714542654997,-5313.27,0.00011506,2]
[325155665,1714542655006,-1967.48,0.00011506,2]
[325155666,1714542655015,-741.95,0.00011506,2]
[325155667,1714542655024,-346.42308347,0.00011506,2]
[325155668,1714542655034,-500.0,0.00011506,2]
[325155669,1714542655043,-500.0,0.00011506,2]
[325155670,1714542655053,-500.0,0.00011506,2]
[325155671,1714542655062,-500.0,0.00011506,2]
[325155672,1714542655071,-12501.05,0.00011506,2]
[325155673,1714542655081,-500.0,0.00011506,2]
[325155674,1714542655090,-500.0,0.00011506,2]
[325155675,1714542655100,-500.0,0.00011506,2]
[325155676,1714542655109,-150.0,0.00011572,2]
[325155677,1714542655118,-10000.0,0.000116,2]
[325155678,1714542655128,-150.0,0.00011613,2]
[325155679,1714542655137,-150.0,0.00011627,2]
[325155680,1714542655146,-150.0,0.00011639,2]
[325155681,1714542655155,-150.0,0.00011672,2]
[325155682,1714542655165,-268.0103,0.0001168,2]
[325155683,1714542655175,-174.17878914,0.0001168,2]
[325155684,1714542655187,-207.1941123,0.0001168,2]
[325155685,1714542655196,-1014.0,0.000117,2]
[325155686,1714542655208,-2600.0,0.000117,4]
[325155687,1714542655219,-150.0,0.00011732,2]
[325155688,1714542655229,-150.0,0.00011741,2]
[325155689,1714542655238,-150.0,0.00011741,2]
[325155690,1714542655247,-150.0,0.00011745,2]
[325155691,1714542655256,-500.0,0.0001178,2]
[325155692,1714542655265,-500.0,0.0001178,2]
[325155693,1714542655274,-350.87798009,0.0001178,2]
[325155694,1714542655283,-541.38,0.0001178,2]
[325155695,1714542655292,-513.60301438,0.0001178,2]
[325155696,1714542655302,-591.75661183,0.0001178,2]
[325155697,1714542655312,-500.0,0.0001178,2]
[325155698,1714542655321,-500.0,0.0001178,2]
[325155699,1714542655330,-518.58467459,0.0001178,2]
[325155700,1714542655339,-500.0,0.0001178,2]
[325155701,1714542655348,-500.0,0.0001178,2]
[325155702,1714542655357,-500.0,0.0001178,2]
[325155703,1714542655366,-500.0,0.0001178,2]
[325155704,1714542655376,-500.0,0.0001178,2]
[325155705,1714542655385,-636.84878269,0.0001178,2]
[325155706,1714542655395,-194.89134915,0.0001178,2]
[325155707,1714542655403,-500.0,0.0001178,2]
[325155708,1714542655413,-500.0,0.0001178,2]
[325155709,1714542655422,-500.0,0.0001178,2]
[325155710,1714542655433,-500.0,0.0001178,2]
[325155711,1714542655443,-500.0,0.0001178,2]
[325155712,1714542655452,-500.0,0.0001178,2]
[325155713,1714542655460,-255.1079085,0.0001178,2]
[325155714,1714542655470,-500.0,0.0001178,2]
[325155715,1714542655479,-500.0,0.0001178,2]
[325155716,1714542655487,-500.0,0.0001178,2]
[325155717,1714542655497,-500.0,0.0001178,2]
[325155718,1714542655506,-500.0,0.0001178,2]
[325155719,1714542655515,-500.0,0.0001178,2]
[325155720,1714542655525,-1188.74,0.0001178,2]
[325155721,1714542655534,-500.0,0.0001178,2]
[325155722,1714542655543,-500.0,0.0001178,2]
[325155723,1714542655552,-500.0,0.0001178,2]
[325155724,1714542655562,-500.0,0.0001178,2]
[325155725,1714542655572,-500.0,0.0001178,2]
[325155726,1714542655581,-500.0,0.0001178,2]
[325155727,1714542655591,-500.0,0.0001178,2]
[325155728,1714542655601,-500.0,0.0001178,2]
[325155729,1714542655610,-500.0,0.0001178,2]
[325155730,1714542655620,-500.0,0.0001178,2]
[325155731,1714542655629,-500.0,0.0001178,2]
[325155732,1714542655638,-500.0,0.0001178,2]
[325155733,1714542655647,-529.07625831,0.0001178,2]
[325155734,1714542655657,-500.0,0.0001178,2]
[325155735,1714542655666,-500.0,0.0001178,2]
[325155736,1714542655675,-500.0,0.0001178,2]
[325155737,1714542655686,-669.77,0.0001178,2]
[325155738,1714542655695,-1625.73,0.0001178,2]
[325155739,1714542655705,-500.0,0.0001178,2]
[325155740,1714542655714,-567.58808135,0.0001178,2]
[325155741,1714542655723,-500.0,0.0001178,2]
[325155742,1714542655732,-500.0,0.0001178,2]
[325155743,1714542655741,-500.0,0.0001178,2]
[325155744,1714542655750,-500.0,0.0001178,2]
[325155745,1714542655760,-584.18,0.0001178,2]
[325155746,1714542655770,-500.0,0.0001178,2]
[325155747,1714542655779,-500.0,0.0001178,2]
[325155748,1714542655789,-500.0,0.0001178,2]
[325155749,1714542655798,-571.47,0.0001178,2]
[325155750,1714542655807,-500.0,0.0001178,2]
[325155751,1714542655817,-500.0,0.0001178,2]
[325155752,1714542655826,-577.54563305,0.0001178,2]
[325155753,1714542655835,-500.0,0.0001178,2]
[325155754,1714542655845,-500.0,0.0001178,2]
[325155755,1714542655855,-586.79,0.0001178,2]
[325155756,1714542655865,-500.0,0.0001178,2]
[325155757,1714542655874,-500.0,0.0001178,2]
[325155758,1714542655883,-500.0,0.0001178,2]
[325155759,1714542655894,-500.0,0.0001178,2]
[325155760,1714542655904,-500.0,0.0001178,2]
[325155761,1714542655913,-150.0,0.0001178,2]
[325155762,1714542655922,-500.0,0.0001178,2]
[325155763,1714542655933,-500.0,0.0001178,2]
[325155764,1714542655942,-500.0,0.0001178,2]
[325155765,1714542655952,-532.14940077,0.0001178,2]
[325155766,1714542655960,-500.0,0.0001178,2]
[325155767,1714542655970,-500.0,0.0001178,2]
[325155768,1714542655979,-500.0,0.0001178,2]
[325155769,1714542655988,-500.0,0.0001178,2]
[325155770,1714542655997,-500.0,0.0001178,2]
[325155771,1714542656007,-500.0,0.0001178,2]
[325155772,1714542656017,-500.0,0.0001178,2]
[325155773,1714542656027,-507.38795494,0.0001178,2]
[325155774,1714542656037,-500.0,0.0001178,2]
[325155775,1714542656048,-716.58,0.0001178,2]
[325155776,1714542656057,-500.0,0.0001178,2]
[325155777,1714542656068,-500.0,0.0001178,2]
[325155778,1714542656078,-500.0,0.0001178,2]
[325155779,1714542656088,-500.0,0.0001178,2]
[325155780,1714542656098,-500.0,0.0001178,2]
[325155781,1714542656108,-500.0,0.0001178,2]
[325155782,1714542656119,-500.0,0.0001178,2]
[325155783,1714542656128,-500.0,0.0001178,2]
[325155784,1714542656137,-500.0,0.0001178,2]
[325155785,1714542656146,-449.18,0.0001178,2]
[325155786,1714542656156,-500.0,0.0001178,2]
[325155787,1714542656165,-500.0,0.0001178,2]
[325155788,1714542656175,-500.0,0.0001178,2]
[325155789,1714542656186,-500.0,0.0001178,2]
[325155790,1714542656194,-500.0,0.0001178,2]
[325155791,1714542656204,-500.0,0.0001178,2]
[325155792,1714542656215,-500.0,0.0001178,2]
[325155793,1714542656224,-500.0,0.0001178,2]
[325155794,1714542656234,-500.0,0.0001178,2]
[325155795,1714542656243,-500.0,0.0001178,2]
[325155796,1714542656252,-500.0,0.0001178,2]
[325155797,1714542656262,-321.89476238,0.0001178,2]
[325155798,1714542656271,-500.0,0.0001178,2]
[325155799,1714542656280,-500.0,0.0001178,2]
[325155800,1714542656289,-500.0,0.0001178,2]
[325155801,1714542656302,-500.0,0.0001178,2]
[325155802,1714542656312,-500.0,0.0001178,2]
[325155803,1714542656322,-500.0,0.0001178,2]
[325155804,1714542656331,-500.0,0.0001178,2]
[325155805,1714542656340,-500.0,0.0001178,2]
[325155806,1714542656349,-500.0,0.0001178,2]
[325155807,1714542656359,-500.0,0.0001178,2]
[325155808,1714542656368,-704.22,0.0001178,2]
[325155809,1714542656377,-500.0,0.0001178,2]
[325155810,1714542656386,-566.2218758,0.0001178,2]
[325155811,1714542656395,-500.0,0.0001178,2]
[325155812,1714542656404,-605.09358796,0.0001178,2]
[325155813,1714542656414,-500.0,0.0001178,2]
[325155814,1714542656423,-500.0,0.0001178,2]
[325155815,1714542656436,-500.0,0.0001178,2]
[325155816,1714542656445,-1776.56,0.0001178,2]
[325155817,1714542656454,-500.0,0.0001178,2]
[325155818,1714542656464,-579.88708988,0.0001178,2]
[325155819,1714542656473,-500.0,0.0001178,2]
[325155820,1714542656482,-500.0,0.0001178,2]
[325155821,1714542656491,-387.98124954,0.0001178,2]
[325155822,1714542656501,-500.0,0.0001178,2]
[325155823,1714542656510,-500.0,0.0001178,2]
[325155824,1714542656520,-500.0,0.0001178,2]
[325155825,1714542656530,-686.3,0.0001178,2]
[325155826,1714542656539,-500.0,0.0001178,2]
[325155827,1714542656549,-500.0,0.0001178,2]
[325155828,1714542656559,-500.0,0.0001178,2]
[325155829,1714542656569,-500.0,0.0001178,2]
[325155830,1714542656578,-626.52,0.0001178,2]
[325155831,1714542656587,-624.72838132,0.0001178,2]
[325155832,1714542656597,-1184.92,0.0001178,2]
[325155833,1714542656606,-500.0,0.0001178,2]
[325155834,1714542656615,-500.0,0.0001178,2]
[325155835,1714542656675,-699.23,0.0001178,2]
[325155836,1714542656688,-500.0,0.0001178,2]
[325155837,1714542656697,-500.0,0.0001178,2]
[325155838,1714542656708,-500.0,0.0001178,2]
[325155839,1714542656718,-474.52230762,0.0001178,2]
[325155840,1714542656728,-500.0,0.0001178,2]
[325155841,1714542656738,-500.0,0.0001178,2]
[325155842,1714542656748,-7170.82,0.0001178,2]
[325155843,1714542656758,-589.48,0.0001178,2]
[325155844,1714542656767,-500.0,0.0001178,2]
[325155845,1714542656776,-625.52,0.0001178,2]
[325155846,1714542656786,-643.14,0.0001178,2]
[325155847,1714542656795,-809.92,0.0001178,2]
[325155848,1714542656804,-500.0,0.0001178,2]
[325155849,1714542656813,-500.0,0.0001178,2]
[325155850,1714542656823,-500.0,0.0001178,2]
[325155851,1714542656835,-697.39,0.0001178,2]
[325155852,1714542656846,-1650.0,0.0001178,2]
[325155853,1714542656855,-7789.17,0.0001178,2]
[325155854,1714542656866,-500.0,0.0001178,2]
[325155855,1714542656875,-500.0,0.0001178,2]
[325155856,1714542656884,-500.0,0.0001178,2]
[325155857,1714542656893,-3346.94,0.0001178,2]
[325155858,1714542656902,-537.09934966,0.0001178,2]
[325155859,1714542656911,-500.0,0.0001178,2]
[325155860,1714542656920,-724.59,0.0001178,2]
[325155861,1714542656929,-585.15,0.0001178,2]
[325155862,1714542656940,-549.53,0.0001178,2]
[325155863,1714542656949,-500.0,0.0001178,2]
[325155864,1714542656958,-500.0,0.0001178,2]
[325155865,1714542656967,-711.11,0.0001178,2]
[325155866,1714542656976,-1021.06,0.0001178,2]
[325155867,1714542656985,-500.0,0.0001178,2]
[325155868,1714542656994,-1018.7,0.0001178,2]
[325155869,1714542657003,-500.0,0.0001178,2]
[325155870,1714542657013,-3038.17,0.0001178,2]
[325155871,1714542657022,-500.0,0.0001178,2]
[325155872,1714542657031,-500.0,0.0001178,2]
[325155873,1714542657041,-500.0,0.0001178,2]
[325155874,1714542657050,-591.4,0.0001178,2]
[325155875,1714542657059,-1962.87,0.0001178,2]
[325155876,1714542657068,-601.10806253,0.0001178,2]
[325155877,1714542657077,-500.0,0.0001178,2]
[325155878,1714542657087,-1298.52,0.0001178,2]
[325155879,1714542657096,-1337.7,0.0001178,2]
[325155880,1714542657106,-517.45894435,0.0001178,2]
[325155881,1714542657116,-500.0,0.0001178,2]
[325155882,1714542657125,-500.0,0.0001178,2]
[325155883,1714542657134,-500.0,0.0001178,2]
[325155884,1714542657144,-500.0,0.0001178,2]
[325155885,1714542657153,-500.0,0.0001178,2]
[325155886,1714542657162,-1264.24,0.0001178,2]
[325155887,1714542657172,-1069.93,0.0001178,2]
[325155888,1714542657183,-447.1369861,0.0001178,2]
[325155889,1714542657192,-582.27,0.0001178,2]
[325155890,1714542657202,-500.0,0.0001178,2]
[325155891,1714542657214,-337.39944512,0.0001178,2]
[325155892,1714542657224,-500.0,0.0001178,2]
[325155893,1714542657234,-710.13,0.0001178,2]
[325155894,1714542657243,-500.0,0.0001178,2]
[325155895,1714542657254,-500.0,0.0001178,2]
[325155896,1714542657264,-500.0,0.0001178,2]
[325155897,1714542657273,-500.0,0.0001178,2]
[325155898,1714542657284,-690.32,0.0001178,2]
[325155899,1714542657293,-738.69,0.0001178,2]
[325155900,1714542657303,-500.0,0.0001178,2]
[325155901,1714542657312,-500.0,0.0001178,2]
[325155902,1714542657321,-500.0,0.0001178,2]
[325155903,1714542657330,-500.0,0.0001178,2]
[325155904,1714542657340,-500.0,0.0001178,2]
[325155905,1714542657350,-500.0,0.0001178,2]
[325155906,1714542657359,-2161.38,0.0001178,2]
[325155907,1714542657368,-966.37,0.0001178,2]
[325155908,1714542657379,-4905.9,0.0001178,2]
[325155909,1714542657388,-500.0,0.0001178,2]
[325155910,1714542657398,-1948.4,0.0001178,2]
[325155911,1714542657407,-759.28,0.0001178,2]